fUSD/lending_fUSD_20251024
["ID","MTS","AMOUNT","RATE_DAILY","PERIOD"]
[392236666,1761274263882,-852.17,0.00041643,30]
[392236667,1761274263891,-242.16202153,0.00041643,30]
[392236668,1761274263901,-500.0,0.00041643,30]
[392236669,1761274263910,-543.83,0.00041643,30]
[392236670,1761274263919,-1009.51,0.00041643,30]
[392236671,1761274263929,-500.0,0.00041643,30]
[392236672,1761274263939,-500.0,0.00041643,30]
[392236673,1761274263948,-947.18,0.00041643,30]
[392236674,1761274263957,-500.0,0.00041643,30]
[392236675,1761274263967,-805.92,0.00041643,30]
[392236676,1761274263977,-983.23,0.00041643,30]
[392236677,1761274263986,-500.0,0.00041643,30]
[392236678,1761274263995,-500.0,0.00041643,30]
[392236679,1761274264004,-534.6,0.00041643,30]
[392236680,1761274264013,-500.0,0.00041643,30]
[392236681,1761274264023,-500.0,0.00041643,30]
[392236682,1761274264032,-1693.52,0.00041643,30]
[392236683,1761274264041,-500.0,0.00041643,30]
[392236684,1761274264050,-500.0,0.00041643,30]
[392236685,1761274264059,-500.0,0.00041643,30]
[392236686,1761274264068,-500.0,0.00041643,30]
[392236687,1761274264078,-1592.4,0.00041643,30]
[392236688,1761274264088,-500.0,0.00041643,30]
[392236689,1761274264101,-528.92475037,0.00041643,30]
[392236690,1761274264111,-500.0,0.00041643,30]
[392236691,1761274264120,-500.0,0.00041643,30]
[392236692,1761274264129,-500.0,0.00041643,30]
[392236693,1761274264139,-1001.47,0.00041643,30]
[392236694,1761274264148,-500.0,0.00041643,30]
[392236695,1761274264158,-793.1,0.00041643,30]
[392236696,1761274264167,-500.0,0.00041643,30]
[392236697,1761274264176,-500.0,0.00041643,30]
[392236698,1761274264186,-500.0,0.00041643,30]
[392236699,1761274264195,-1093.09,0.00041643,30]
[392236700,1761274264205,-500.0,0.00041643,30]
[392236701,1761274264221,-508.4,0.00041643,30]
[392236702,1761274264239,-500.0,0.00041643,30]
[392236703,1761274264253,-500.0,0.00041643,30]
[392236704,1761274264265,-500.0,0.00041643,30]
[392236705,1761274264278,-500.0,0.00041643,30]
[392236706,1761274264292,-513.61360456,0.00041643,30]
[392236707,1761274264306,-787.98,0.00041643,30]
[392236708,1761274264321,-500.0,0.00041643,30]
[392236709,1761274264335,-500.0,0.00041643,30]
[392236710,1761274264351,-528.40845504,0.00041643,30]
[392236711,1761274264365,-1070.96,0.00041643,30]
[392236712,1761274264377,-500.0,0.00041643,30]
[392236713,1761274264388,-500.0,0.00041643,30]
[392236714,1761274264402,-500.0,0.00041643,30]
[392236715,1761274264416,-916.72,0.00041643,30]
[392236716,1761274264429,-500.0,0.00041643,30]
[392236717,1761274264443,-716.59,0.00041643,30]
[392236718,1761274264458,-500.0,0.00041643,30]
[392236719,1761274264472,-639.77,0.00041643,30]
[392236720,1761274264485,-1101.98,0.00041643,30]
[392236721,1761274264499,-500.0,0.00041643,30]
[392236722,1761274264514,-678.33,0.00041643,30]
[392236723,1761274264527,-850.46,0.00041643,30]
[392236724,1761274264541,-927.52,0.00041643,30]
[392236725,1761274264557,-500.0,0.00041643,30]
[392236726,1761274264570,-500.0,0.00041643,30]
[392236727,1761274264584,-763.17,0.00041643,30]
[392236728,1761274264600,-500.0,0.00041643,30]
[392236729,1761274264617,-500.0,0.00041643,30]
[392236730,1761274264635,-500.0,0.00041643,30]
[392236731,1761274264650,-500.0,0.00041643,30]
[392236732,1761274264664,-570.5,0.00041643,30]
[392236733,1761274264676,-500.0,0.00041643,30]
[392236734,1761274264687,-500.0,0.00041643,30]
[392236735,1761274264700,-500.0,0.00041643,30]
[392236736,1761274264715,-500.0,0.00041643,30]
[392236737,1761274264728,-754.43,0.00041643,30]
[392236738,1761274264739,-500.0,0.00041643,30]
[392236739,1761274264750,-702.42,0.00041643,30]
[392236740,1761274264761,-554.36350115,0.00041643,30]
[392236741,1761274264774,-500.0,0.00041643,30]
[392236742,1761274264786,-500.0,0.00041643,30]
[392236743,1761274264797,-500.0,0.00041643,30]
[392236744,1761274264808,-500.0,0.00041643,30]
[392236745,1761274264821,-500.0,0.00041643,30]
[392236746,1761274264833,-500.0,0.00041643,30]
[392236747,1761274264845,-500.0,0.00041643,30]
[392236748,1761274264857,-500.0,0.00041643,30]
[392236749,1761274264869,-500.0,0.00041643,30]
[392236750,1761274264882,-500.0,0.00041643,30]
[392236751,1761274264897,-500.0,0.00041643,30]
[392236752,1761274264912,-1004.51,0.00041643,30]
[392236753,1761274264926,-500.0,0.00041643,30]
[392236754,1761274264941,-500.0,0.00041643,30]
[392236755,1761274264956,-500.0,0.00041643,30]
[392236756,1761274264975,-500.0,0.00041643,30]
[392236757,1761274264992,-500.0,0.00041643,30]
[392236758,1761274265008,-500.0,0.00041643,30]
[392236759,1761274265023,-500.0,0.00041643,30]
[392236760,1761274265039,-691.31,0.00041643,30]
[392236761,1761274265054,-500.0,0.00041643,30]
[392236762,1761274265069,-500.0,0.00041643,30]
[392236763,1761274265086,-500.0,0.00041643,30]
[392236764,1761274265101,-545.98,0.00041643,30]
[392236765,1761274265116,-500.0,0.00041643,30]
[392236766,1761274265130,-500.0,0.00041643,30]
[392236767,1761274265143,-938.21,0.00041643,30]
[392236768,1761274265156,-500.0,0.00041643,30]
[392236769,1761274265169,-500.0,0.00041643,30]
[392236770,1761274265183,-500.0,0.00041643,30]
[392236771,1761274265196,-500.0,0.00041643,30]
[392236772,1761274265211,-500.0,0.00041643,30]
[392236773,1761274265225,-500.0,0.00041643,30]
[392236774,1761274265237,-894.52,0.00041643,30]
[392236775,1761274265251,-500.0,0.00041643,30]
[392236776,1761274265265,-500.0,0.00041643,30]
[392236777,1761274265278,-500.0,0.00041643,30]
[392236778,1761274265291,-441.23668165,0.00041643,30]
[392236779,1761274265304,-500.0,0.00041643,30]
[392236780,1761274265316,-500.0,0.00041643,30]
[392236781,1761274265329,-500.0,0.00041643,30]
[392236782,1761274265341,-500.0,0.00041643,30]
[392236783,1761274265354,-500.0,0.00041643,30]
[392236784,1761274265366,-500.0,0.00041643,30]
[392236785,1761274265379,-500.0,0.00041643,30]
[392236786,1761274265392,-205.83456741,0.00041643,30]
[392236787,1761274265404,-585.16,0.00041643,30]
[392236788,1761274265416,-500.0,0.00041643,30]
[392236789,1761274265428,-500.0,0.00041643,30]
[392236790,1761274265441,-500.0,0.00041643,30]
[392236791,1761274265453,-500.0,0.00041643,30]
[392236792,1761274265465,-500.0,0.00041643,30]
[392236793,1761274265477,-500.0,0.00041643,30]
[392236794,1761274265489,-500.0,0.00041643,30]
[392236795,1761274265501,-500.0,0.00041643,30]
[392236796,1761274265513,-500.0,0.00041643,30]
[392236797,1761274265525,-500.0,0.00041643,30]
[392236798,1761274265536,-946.05,0.00041643,30]
[392236799,1761274265548,-500.0,0.00041643,30]
[392236800,1761274265559,-500.0,0.00041643,30]
[392236801,1761274265571,-500.0,0.00041643,30]
[392236802,1761274265582,-500.0,0.00041643,30]
[392236803,1761274265594,-500.0,0.00041643,30]
[392236804,1761274265606,-500.0,0.00041643,30]
[392236805,1761274265625,-500.0,0.00041643,30]
[392236806,1761274265636,-500.0,0.00041643,30]
[392236807,1761274265647,-500.0,0.00041643,30]
[392236808,1761274265659,-500.0,0.00041643,30]
[392236809,1761274265674,-686.05,0.00041643,30]
[392236810,1761274265686,-500.0,0.00041643,30]
[392236811,1761274265698,-500.0,0.00041643,30]
[392236812,1761274265710,-500.0,0.00041643,30]
[392236813,1761274265722,-226.28192559,0.00041643,30]
[392236814,1761274265733,-500.0,0.00041643,30]
[392236815,1761274265745,-500.0,0.00041643,30]
[392236816,1761274265756,-500.0,0.00041643,30]
[392236817,1761274265768,-797.86,0.00041643,30]
[392236818,1761274265780,-550.07,0.00041643,30]
[392236819,1761274265792,-618.53,0.00041643,30]
[392236820,1761274265803,-500.0,0.00041643,30]
[392236821,1761274265815,-697.84,0.00041643,30]
[392236822,1761274265827,-500.0,0.00041643,30]
[392236823,1761274265838,-500.0,0.00041643,30]
[392236824,1761274265849,-500.0,0.00041643,30]
[392236825,1761274265861,-500.0,0.00041643,6]
[392236826,1761274265872,-151.0,0.00041643,120]
[392236827,1761274265883,-151.0,0.00041643,120]
[392236828,1761274265895,-500.0,0.00041643,30]
[392236829,1761274265906,-1056.48,0.00041643,30]
[392236830,1761274265918,-500.0,0.00041643,30]
[392236831,1761274265929,-500.0,0.00041643,30]
[392236832,1761274265940,-500.0,0.00041643,30]
[392236833,1761274265952,-500.0,0.00041643,30]
[392236834,1761274265963,-500.0,0.00041643,30]
[392236835,1761274265975,-500.0,0.00041643,30]
[392236836,1761274265986,-500.0,0.00041643,30]
[392236837,1761274265997,-500.0,0.00041643,30]
[392236838,1761274266007,-500.0,0.00041643,30]
[392236839,1761274266019,-591.1,0.00041643,30]
[392236840,1761274266030,-500.0,0.00041643,30]
[392236841,1761274266041,-500.0,0.00041643,30]
[392236842,1761274266052,-500.0,0.00041643,30]
[392236843,1761274266063,-500.0,0.00041643,30]
[392236844,1761274266074,-500.0,0.00041643,30]
[392236845,1761274266085,-500.0,0.00041643,30]
[392236846,1761274266096,-500.0,0.00041643,30]
[392236847,1761274266107,-500.0,0.00041643,30]
[392236848,1761274266118,-500.0,0.00041643,30]
[392236849,1761274266129,-808.51,0.00041643,30]
[392236850,1761274266139,-500.0,0.00041643,30]
[392236851,1761274266151,-998.82,0.00041643,30]
[392236852,1761274266162,-949.73,0.00041643,30]
[392236853,1761274266173,-500.0,0.00041643,30]
[392236854,1761274266185,-216.85629552,0.00041643,30]
[392236855,1761274266196,-863.61,0.00041643,30]
[392236856,1761274266207,-500.0,0.00041643,30]
[392236857,1761274266219,-500.0,0.00041643,30]
[392236858,1761274266231,-500.0,0.00041643,30]
[392236859,1761274266242,-929.56,0.00041643,30]
[392236860,1761274266253,-500.0,0.00041643,30]
[392236861,1761274266264,-500.0,0.00041643,30]
[392236862,1761274266276,-500.0,0.00041643,30]
[392236863,1761274266287,-500.0,0.00041643,30]
[392236864,1761274266299,-828.45,0.00041643,30]
[392236865,1761274266310,-354.00107458,0.00041643,30]
[392236866,1761274266321,-500.0,0.00041643,30]
[392236867,1761274266332,-500.0,0.00041643,30]
[392236868,1761274266343,-500.0,0.00041643,30]
[392236869,1761274266354,-519.68,0.00041643,30]
[392236870,1761274266365,-500.0,0.00041643,30]
[392236871,1761274266376,-500.0,0.00041643,30]
[392236872,1761274266387,-611.28,0.00041643,30]
[392236873,1761274266402,-500.0,0.00041643,30]
[392236874,1761274266414,-684.24,0.00041643,30]
[392236875,1761274266425,-500.0,0.00041643,30]
[392236876,1761274266437,-500.0,0.00041643,30]
[392236877,1761274266448,-500.0,0.00041643,30]
[392236878,1761274266459,-500.0,0.00041643,30]
[392236879,1761274266471,-948.08,0.00041643,30]
[392236880,1761274266482,-726.47,0.00041643,30]
[392236881,1761274266493,-500.0,0.00041643,30]
[392236882,1761274266504,-500.0,0.00041643,30]
[392236883,1761274266515,-1168.58,0.00041643,30]
[392236884,1761274266527,-500.0,0.00041643,30]
[392236885,1761274266538,-500.0,0.00041643,30]
[392236886,1761274266549,-500.0,0.00041643,30]
[392236887,1761274266560,-454.79535648,0.00041643,30]
[392236888,1761274266571,-500.0,0.00041643,30]
[392236889,1761274266582,-500.0,0.00041643,30]
[392236890,1761274266594,-500.0,0.00041643,30]
[392236891,1761274266605,-564.19,0.00041643,30]
[392236892,1761274266616,-500.0,0.00041643,30]
[392236893,1761274266631,-780.47,0.00041643,30]
[392236894,1761274266642,-500.0,0.00041643,30]
[392236895,1761274266653,-500.0,0.00041643,30]
[392236896,1761274266664,-1042.94,0.00041643,30]
[392236897,1761274266675,-500.0,0.00041643,30]
[392236898,1761274266686,-500.0,0.00041643,30]
[392236899,1761274266698,-500.0,0.00041643,30]
[392236900,1761274266709,-1344.1,0.00041643,30]
[392236901,1761274266721,-634.29,0.00041643,30]
[392236902,1761274266733,-500.0,0.00041643,30]
[392236903,1761274266744,-609.92,0.00041643,30]
[392236904,1761274266756,-500.0,0.00041643,30]
[392236905,1761274266767,-500.0,0.00041643,30]
[392236906,1761274266779,-500.0,0.00041643,30]
[392236907,1761274266790,-500.0,0.00041643,30]
[392236908,1761274266801,-500.0,0.00041643,30]
[392236909,1761274266812,-622.49,0.00041643,30]
[392236910,1761274266824,-835.6,0.00041643,30]
[392236911,1761274266835,-500.0,0.00041643,30]
[392236912,1761274266847,-500.0,0.00041643,30]
[392236913,1761274266858,-500.0,0.00041643,30]
[392236914,1761274266870,-1419.8,0.00041643,30]
[392236915,1761274266881,-545.23,0.00041643,30]
[392236916,1761274266892,-500.0,0.00041643,30]
[392236917,1761274266903,-500.0,0.00041643,12]
[392236918,1761274266915,-500.0,0.00041643,30]
[392236919,1761274266926,-496.03735446,0.00041643,30]
[392236920,1761274266938,-500.0,0.00041643,30]
[392236921,1761274266950,-500.0,0.00041643,30]
[392236922,1761274266962,-1093.2,0.00041643,30]
[392236923,1761274266973,-500.0,0.00041643,30]
[392236924,1761274266984,-500.0,0.00041643,30]
[392236925,1761274266996,-1452.1,0.00041643,30]
[392236926,1761274267007,-500.0,0.00041643,30]
[392236927,1761274267018,-500.0,0.00041643,30]
[392236928,1761274267030,-500.0,0.00041643,30]
[392236929,1761274267041,-878.02,0.00041643,30]
[392236930,1761274267052,-500.0,0.00041643,30]
[392236931,1761274267064,-500.0,0.00041643,30]
[392236932,1761274267075,-500.0,0.00041643,30]
[392236933,1761274267086,-500.0,0.00041643,10]
[392236934,1761274267098,-857.71,0.00041643,30]
[392236935,1761274267109,-500.0,0.00041643,30]
[392236936,1761274267120,-500.0,0.00041643,30]
[392236937,1761274267131,-500.0,0.00041643,30]
[392236938,1761274267142,-500.0,0.00041643,30]
[392236939,1761274267153,-500.0,0.00041643,30]
[392236940,1761274267164,-500.0,0.00041643,30]
[392236941,1761274267176,-500.0,0.00041643,30]
[392236942,1761274267187,-500.0,0.00041643,30]
[392236943,1761274267198,-500.0,0.00041643,30]
[392236944,1761274267210,-500.0,0.00041643,30]
[392236945,1761274267221,-500.0,0.00041643,30]
[392236946,1761274267232,-500.0,0.00041643,30]
[392236947,1761274267243,-506.50250995,0.00041643,30]
[392236948,1761274267254,-500.0,0.00041643,30]
[392236949,1761274267265,-500.0,0.00041643,30]
[392236950,1761274267276,-500.0,0.00041643,30]
[392236951,1761274267287,-1401.8,0.00041643,30]
[392236952,1761274267298,-500.0,0.00041643,30]
[392236953,1761274267309,-696.41,0.00041643,30]
[392236954,1761274267321,-500.0,0.00041643,30]
[392236955,1761274267332,-500.0,0.00041643,30]
[392236956,1761274267343,-500.0,0.00041643,30]
[392236957,1761274267355,-643.42447486,0.00041643,30]
[392236958,1761274267366,-500.0,0.00041643,30]
[392236959,1761274267377,-500.0,0.00041643,30]
[392236960,1761274267389,-500.0,0.00041643,30]
[392236961,1761274267400,-500.0,0.00041643,30]
[392236962,1761274267411,-1112.95,0.00041643,30]
[392236963,1761274267422,-476.10056676,0.00041643,30]
[392236964,1761274267434,-715.92,0.00041643,30]
[392236965,1761274267445,-500.0,0.00041643,30]
[392236966,1761274267456,-500.0,0.00041643,30]
[392236967,1761274267467,-500.0,0.00041643,30]
[392236968,1761274267479,-500.0,0.00041643,30]
[392236969,1761274267490,-588.07123204,0.00041643,30]
[392236970,1761274267501,-655.58,0.00041643,30]
[392236971,1761274267513,-500.0,0.00041643,30]
[392236972,1761274267524,-685.7,0.00041643,30]
[392236973,1761274267535,-535.15885705,0.00041643,30]
[392236974,1761274267547,-500.0,0.00041643,30]
[392236975,1761274267557,-500.0,0.00041643,30]
[392236976,1761274267569,-500.0,0.00041643,30]
[392236977,1761274267580,-500.0,0.00041643,30]
[392236978,1761274267591,-500.0,0.00041643,30]
[392236979,1761274267602,-500.0,0.00041643,30]
[392236980,1761274267613,-500.0,0.00041643,30]
[392236981,1761274267627,-688.28,0.00041643,30]
[392236982,1761274267640,-1095.77,0.00041643,30]
[392236983,1761274267650,-500.0,0.00041643,30]
[392236984,1761274267661,-883.5,0.00041643,30]
[392236985,1761274267674,-957.43,0.00041643,30]
[392236986,1761274267685,-660.61,0.00041643,30]
[392236987,1761274267697,-1014.07,0.00041643,30]
[392236988,1761274267708,-500.0,0.00041643,30]
[392236989,1761274267719,-500.0,0.00041643,30]
[392236990,1761274267730,-500.0,0.00041643,30]
[392236991,1761274267741,-500.0,0.00041643,30]
[392236992,1761274267752,-500.0,0.00041643,30]
[392236993,1761274267763,-546.04,0.00041643,30]
[392236994,1761274267774,-500.0,0.00041643,30]
[392236995,1761274267785,-500.0,0.00041643,30]
[392236996,1761274267796,-500.0,0.00041643,30]
[392236997,1761274267807,-500.0,0.00041643,30]
[392236998,1761274267818,-500.0,0.00041643,30]
[392236999,1761274267828,-500.0,0.00041643,30]
[392237000,1761274267839,-500.0,0.00041643,30]
[392237001,1761274267851,-803.51,0.00041643,30]
[392237002,1761274267861,-500.0,0.00041643,30]
[392237003,1761274267872,-500.0,0.00041643,30]
[392237004,1761274267883,-508.08,0.00041643,30]
[392237005,1761274267894,-500.0,0.00041643,30]
[392237006,1761274267905,-500.0,0.00041643,30]
[392237007,1761274267916,-500.0,0.00041643,30]
[392237008,1761274267926,-500.0,0.00041643,30]
[392237009,1761274267939,-500.0,0.00041643,30]
[392237010,1761274267950,-500.0,0.00041643,30]
[392237011,1761274267962,-820.59,0.00041643,30]
[392237012,1761274267973,-500.0,0.00041643,30]
[392237013,1761274267984,-500.0,0.00041643,30]
[392237014,1761274267996,-938.87,0.00041643,30]
[392237015,1761274268007,-500.0,0.00041643,30]
[392237016,1761274268018,-500.0,0.00041643,30]
[392237017,1761274268029,-500.0,0.00041643,30]
[392237018,1761274268040,-500.0,0.00041643,30]
[392237019,1761274268051,-500.0,0.00041643,30]
[392237020,1761274268063,-554.84,0.00041643,30]
[392237021,1761274268074,-500.0,0.00041643,30]
[392237022,1761274268086,-500.0,0.00041643,30]
[392237023,1761274268098,-500.0,0.00041643,30]
[392237024,1761274268109,-500.0,0.00041643,30]
[392237025,1761274268119,-522.66,0.00041643,30]
[392237026,1761274268130,-638.72,0.00041643,30]
[392237027,1761274268139,-500.0,0.00041643,30]
[392237028,1761274268149,-500.0,0.00041643,30]
[392237029,1761274268159,-500.0,0.00041643,30]
[392237030,1761274268168,-500.0,0.00041643,30]
[392237031,1761274268178,-629.32,0.00041643,30]
[392237032,1761274268189,-500.0,0.00041643,30]
[392237033,1761274268199,-706.38,0.00041643,30]
[392237034,1761274268208,-500.0,0.00041643,30]
[392237035,1761274268874,-707.52,0.00041643,30]
[392237036,1761274268896,-309.00071066,0.00041643,30]
[392237037,1761274268919,-535.92388232,0.00041643,30]
[392237038,1761274268948,-500.0,0.00041643,30]
[392237039,1761274268963,-500.0,0.00041643,30]
[392237040,1761274268972,-546.94,0.00041643,30]
[392237041,1761274268982,-1177.73,0.00041643,30]
[392237042,1761274268992,-597.57800756,0.00041643,30]
[392237043,1761274269001,-500.0,0.00041643,30]
[392237044,1761274269011,-500.0,0.00041643,30]
[392237045,1761274269021,-500.0,0.00041643,30]
[392237046,1761274269031,-500.0,0.00041643,30]
[392237047,1761274269040,-500.0,0.00041643,30]
[392237048,1761274269050,-988.6,0.00041643,30]
[392237049,1761274269060,-500.0,0.00041643,30]
[392237050,1761274269069,-500.0,0.00041643,30]
[392237051,1761274269078,-928.63,0.00041643,30]
[392237052,1761274269088,-500.0,0.00041643,30]
[392237053,1761274269098,-500.0,0.00041643,30]
[392237054,1761274269107,-500.0,0.00041643,30]
[392237055,1761274269117,-587.29,0.00041643,30]
[392237056,1761274269127,-500.0,0.00041643,30]
[392237057,1761274269136,-500.0,0.00041643,30]
[392237058,1761274269146,-500.0,0.00041643,30]
[392237059,1761274269156,-500.0,0.00041643,30]
[392237060,1761274269165,-500.0,0.00041643,30]
[392237061,1761274269175,-500.0,0.00041643,30]
[392237062,1761274269185,-500.0,0.00041643,30]
[392237063,1761274269195,-500.0,0.00041643,30]
[392237064,1761274269205,-500.0,0.00041643,30]
[392237065,1761274269215,-643.72,0.00041643,30]
[392237066,1761274269225,-733.15,0.00041643,30]
[392237067,1761274269235,-500.0,0.00041643,30]
[392237068,1761274269244,-698.05,0.00041643,30]
[392237069,1761274269254,-500.0,0.00041643,30]
[392237070,1761274269264,-839.55,0.00041643,30]
[392237071,1761274269273,-500.0,0.00041643,30]
[392237072,1761274269283,-500.0,0.00041643,30]
[392237073,1761274269292,-1592.8,0.00041643,30]
[392237074,1761274269303,-500.0,0.00041643,30]
[392237075,1761274269312,-164.41121716,0.00041643,30]
[392237076,1761274269322,-545.43,0.00041643,30]
[392237077,1761274269331,-500.0,0.00041643,30]
[392237078,1761274269342,-500.0,0.00041643,30]
[392237079,1761274269353,-663.56,0.00041643,30]
[392237080,1761274269363,-1150.75,0.00041643,30]
[392237081,1761274269372,-500.0,0.00041643,30]
[392237082,1761274269382,-500.0,0.00041643,30]
[392237083,1761274269392,-500.0,0.00041643,30]
[392237084,1761274269401,-741.59,0.00041643,30]
[392237085,1761274269411,-500.0,0.00041643,30]
[392237086,1761274269420,-500.0,0.00041643,30]
[392237087,1761274269430,-1685.01,0.00041643,30]
[392237088,1761274269439,-876.93,0.00041643,30]
[392237089,1761274269449,-500.0,0.00041643,30]
[392237090,1761274269458,-500.0,0.00041643,30]
[392237091,1761274269468,-500.0,0.00041643,30]
[392237092,1761274269478,-902.25,0.00041643,30]
[392237093,1761274269489,-500.0,0.00041643,30]
[392237094,1761274269500,-500.0,0.00041643,30]
[392237095,1761274269511,-500.0,0.00041643,30]
[392237096,1761274269521,-622.1,0.00041643,30]
[392237097,1761274269531,-500.0,0.00041643,30]
[392237098,1761274269541,-500.0,0.00041643,30]
[392237099,1761274269551,-500.0,0.00041643,30]
[392237100,1761274269560,-610.85,0.00041643,30]
[392237101,1761274269570,-500.0,0.00041643,30]
[392237102,1761274269580,-500.0,0.00041643,30]
[392237103,1761274269590,-500.0,0.00041643,2]
[392237104,1761274269600,-500.0,0.00041643,30]
[392237105,1761274269611,-596.32,0.00041643,30]
[392237106,1761274269621,-1579.82,0.00041643,30]
[392237107,1761274269636,-500.0,0.00041643,30]
[392237108,1761274269648,-500.0,0.00041643,30]
[392237109,1761274269658,-500.0,0.00041643,30]
[392237110,1761274269668,-920.06,0.00041643,30]
[392237111,1761274269679,-824.73,0.00041643,30]
[392237112,1761274269689,-608.33,0.00041643,30]
[392237113,1761274269698,-447.95545912,0.00041643,30]
[392237114,1761274269709,-650.38,0.00041643,30]
[392237115,1761274269720,-500.0,0.00041643,30]
[392237116,1761274269731,-160.19480776,0.00041643,30]
[392237117,1761274269740,-500.0,0.00041643,30]
[392237118,1761274269752,-804.6,0.00041643,30]
[392237119,1761274269762,-500.0,0.00041643,30]
[392237120,1761274269773,-500.0,0.00041643,30]
[392237121,1761274269784,-500.0,0.00041643,30]
[392237122,1761274269795,-522.54,0.00041643,30]
[392237123,1761274269804,-533.1646229,0.00041643,30]
[392237124,1761274269814,-500.0,0.00041643,30]
[392237125,1761274269823,-574.96,0.00041643,30]
[392237126,1761274269834,-190.70468209,0.00041643,30]
[392237127,1761274269843,-500.0,0.00041643,30]
[392237128,1761274269852,-872.69,0.00041643,30]
[392237129,1761274269861,-500.0,0.00041643,30]
[392237130,1761274269872,-500.0,0.00041643,30]
[392237131,1761274269882,-500.0,0.00041643,30]
[392237132,1761274269892,-500.0,0.00041643,30]
[392237133,1761274269903,-612.32,0.00041643,30]
[392237134,1761274269912,-500.0,0.00041643,30]
[392237135,1761274269921,-505.49919694,0.00041643,30]
[392237136,1761274269930,-500.0,0.00041643,30]
[392237137,1761274269944,-500.0,0.00041643,30]
[392237138,1761274269954,-503.1950255,0.00041643,30]
[392237139,1761274269963,-571.82,0.00041643,30]
[392237140,1761274269972,-500.0,0.00041643,30]
[392237141,1761274269982,-566.28,0.00041643,30]
[392237142,1761274269991,-866.58,0.00041643,30]
[392237143,1761274270000,-500.0,0.00041643,30]
[392237144,1761274270009,-524.6,0.00041643,30]
[392237145,1761274270018,-500.0,0.00041643,30]
[392237146,1761274270028,-1110.19,0.00041643,30]
[392237147,1761274270037,-513.84676875,0.00041643,30]
[392237148,1761274270047,-524.53643456,0.00041643,30]
[392237149,1761274270056,-1253.93,0.00041643,30]
[392237150,1761274270065,-500.0,0.00041643,30]
[392237151,1761274270074,-500.0,0.00041643,30]
[392237152,1761274270084,-500.0,0.00041643,30]
[392237153,1761274270094,-500.0,0.00041643,30]
[392237154,1761274270103,-567.51,0.00041643,30]
[392237155,1761274270113,-502.66,0.00041643,30]
[392237156,1761274270123,-964.71,0.00041643,30]
[392237157,1761274270132,-661.3,0.00041643,30]
[392237158,1761274270141,-644.6,0.00041643,30]
[392237159,1761274270150,-500.0,0.00041643,30]
[392237160,1761274270160,-500.0,0.00041643,30]
[392237161,1761274270169,-500.0,0.00041643,30]
[392237162,1761274270178,-500.0,0.00041643,30]
[392237163,1761274270188,-500.0,0.00041643,30]
[392237164,1761274270198,-507.5,0.00041643,30]
[392237165,1761274270207,-932.16,0.00041643,30]